bitfinex/quotes_SOLUSD_20230102
["timestamp","ask_amount","ask_price","bid_price","bid_amount"]
[1672653116149,1000.0,11.17,11.163,30.0]
[1672653118135,1000.0,11.17,11.162,141.5218]
[1672653118678,1000.0,11.17,11.163,30.0]
[1672653120148,1000.0,11.17,11.162,141.5218]
[1672653120370,1000.0,11.17,11.163,30.0]
[1672653121606,1000.0,11.17,11.163,97.29]
[1672653124019,67.2,11.179,11.164,20.0]
[1672653124234,115.337,11.179,11.165,113.81518]
[1672653124450,115.337,11.179,11.167,30.0]
[1672653124762,30.0,11.177,11.168,49.7154]
[1672653125089,30.0,11.175,11.168,49.7154]
[1672653126447,67.22,11.176,11.168,49.7154]
[1672653126651,90.5584973,11.175,11.16,9.17]
[1672653126860,97.23,11.174,11.16,9.17]
[1672653127195,30.0,11.172,11.16,9.17]
[1672653127399,30.0,11.172,11.161,24.7107]
[1672653127400,87.25,11.171,11.161,24.7107]
[1672653127621,30.0,11.17,11.161,54.7107]
[1672653128242,87.25,11.171,11.162,30.0]
[1672653128444,20.0,11.171,11.162,97.3]
[1672653129276,20.0,11.172,11.162,97.3]
[1672653131923,20.0,11.172,11.162,67.3]
[1672653132254,20.0,11.172,11.162,30.0]
[1672653134855,20.0,11.172,11.161,122.0207]
[1672653134856,20.0,11.172,11.161,92.0207]
[1672653135065,30.0,11.171,11.161,24.7107]
[1672653135596,30.0,11.171,11.161,54.7107]
[1672653135819,30.0,11.171,11.161,24.7107]
[1672653136003,97.25,11.171,11.161,54.7107]
[1672653136216,97.25,11.171,11.162,67.3]
[1672653136435,97.25,11.171,11.161,54.7107]
[1672653136652,67.25,11.171,11.162,30.0]
[1672653139483,67.25,11.171,11.161,54.7107]
[1672653139688,30.0,11.17,11.161,54.7107]
[1672653140546,67.25,11.171,11.161,54.7107]
[1672653140732,87.24,11.172,11.162,30.0]
[1672653140939,9.06,11.18,11.163,20.0]
[1672653141154,112.1398,11.179,11.165,30.0]
[1672653141374,112.1398,11.179,11.166,177.2776]
[1672653141579,67.2,11.178,11.167,30.0]
[1672653141795,30.0,11.177,11.167,30.0]
[1672653142005,67.22,11.176,11.168,23.1714]
[1672653142838,67.21,11.177,11.168,23.1714]
[1672653143056,67.21,11.177,11.169,24.5452]
[1672653143271,67.21,11.177,11.17,30.0]
[1672653143685,67.21,11.177,11.169,54.5452]
[1672653143897,30.0,11.177,11.169,54.5452]
[1672653144100,67.22,11.176,11.169,54.5452]
[1672653144306,67.21,11.177,11.169,54.5452]
[1672653144528,112.1398,11.179,11.17,30.0]
[1672653144741,112.1398,11.179,11.17,97.25]
[1672653146093,112.1398,11.179,11.17,120.2194]
[1672653148748,30.0,11.178,11.17,90.2194]
[1672653149154,112.1398,11.179,11.17,90.2194]
[1672653149383,30.0,11.178,11.17,90.2194]
[1672653149586,112.1398,11.179,11.17,90.2194]
[1672653149806,112.1398,11.179,11.171,30.0]
[1672653151799,112.1398,11.179,11.17,129.3494]
[1672653152007,30.0,11.178,11.17,99.3494]
[1672653152837,112.1398,11.179,11.171,30.0]
[1672653153168,30.0,11.178,11.17,99.3494]
[1672653153363,30.0,11.178,11.171,30.0]
[1672653153568,112.1398,11.179,11.171,30.0]
[1672653153773,30.0,11.178,11.17,99.3494]
[1672653153999,112.1398,11.179,11.171,30.0]
[1672653155479,30.0,11.178,11.17,99.3494]
[1672653155873,30.0,11.178,11.17,90.2194]
[1672653156087,30.0,11.178,11.17,22.9694]
[1672653157266,112.1398,11.179,11.17,52.9694]
[1672653158081,112.1398,11.179,11.17,120.2194]
[1672653160924,30.0,11.178,11.17,90.2194]
[1672653161889,30.0,11.178,11.17,22.9694]
[1672653162615,30.0,11.176,11.17,22.9694]
[1672653163653,67.21,11.177,11.17,22.9694]
[1672653164090,67.2,11.178,11.17,52.9694]
[1672653164728,179.3398,11.179,11.171,30.0]
[1672653164921,112.1398,11.179,11.171,120.61]
[1672653166614,112.1398,11.179,11.171,53.36]
[1672653168299,30.0,11.178,11.171,23.36]
[1672653169554,112.1398,11.179,11.171,53.36]
[1672653170500,112.1398,11.179,11.171,23.36]
[1672653170913,112.1398,11.179,11.171,53.36]
[1672653171753,112.1398,11.179,11.171,23.36]
[1672653172928,30.0,11.178,11.171,23.36]
[1672653175032,112.1398,11.179,11.171,53.36]
[1672653175230,30.0,11.178,11.171,23.36]
[1672653177030,112.1398,11.179,11.171,23.36]
[1672653177649,112.1398,11.179,11.171,53.36]
[1672653178181,112.1398,11.179,11.172,30.0]
[1672653178579,112.1398,11.179,11.172,67.24]
[1672653179034,24.3688,11.18,11.172,67.24]
[1672653179652,30.0,11.18,11.172,67.24]
[1672653181441,30.0,11.18,11.171,90.61]
[1672653182064,91.7236,11.181,11.172,30.0]
[1672653182272,30.0,11.18,11.171,90.61]
[1672653182695,30.0,11.18,11.172,30.0]
[1672653183438,30.0,11.18,11.171,90.61]
[1672653183842,30.0,11.18,11.172,30.0]
[1672653184263,30.0,11.18,11.171,90.61]
[1672653185309,30.0,11.18,11.172,30.0]
[1672653185523,24.5336,11.181,11.172,30.0]
[1672653185750,67.15,11.187,11.173,67.23]
[1672653185960,67.14,11.188,11.174,20.0]
[1672653186173,137.6984973,11.188,11.175,97.22]
[1672653186491,120.5584973,11.187,11.171,67.25]
[1672653186687,67.16,11.186,11.172,30.0]
[1672653186889,30.0,11.185,11.172,30.0]
[1672653187104,30.0,11.183,11.172,30.0]
[1672653187314,87.18,11.182,11.172,97.24]
[1672653187642,30.0,11.181,11.172,67.24]
[1672653187847,30.0,11.181,11.171,120.6714]
[1672653188374,87.18,11.182,11.171,120.6714]
[1672653188696,30.0,11.181,11.171,120.6714]
[1672653189514,30.0,11.181,11.171,90.6714]
[1672653190162,87.18,11.182,11.172,30.0]
[1672653190785,20.0,11.182,11.174,30.0]
[1672653190994,20.0,11.182,11.173,67.23]
[1672653191199,30.0,11.181,11.172,67.24]
[1672653191622,30.0,11.181,11.171,90.6714]
[1672653193207,97.19,11.181,11.171,90.6714]
[1672653194589,97.19,11.181,11.172,30.0]
[1672653194774,50.0,11.182,11.172,30.0]
[1672653194775,117.18,11.182,11.172,30.0]
[1672653194976,50.0,11.182,11.172,30.0]
[1672653195413,50.0,11.182,11.171,90.6714]
[1672653195633,30.0,11.18,11.171,90.6714]
[1672653196030,196.6382,11.182,11.171,90.6714]
[1672653196245,30.0,11.181,11.172,30.0]
[1672653196677,30.0,11.181,11.173,67.23]
[1672653197094,30.0,11.181,11.172,97.24]
[1672653197627,30.0,11.181,11.172,67.24]
[1672653198241,9.13,11.18,11.171,23.4214]
[1672653198457,30.0,11.178,11.16,9.22]
[1672653198666,87.21,11.177,11.161,16.54111]
[1672653198890,30.0,11.176,11.163,30.0]
[1672653199202,67.21,11.177,11.164,103.82667]
[1672653199425,30.0,11.178,11.165,30.0]
[1672653199615,30.0,11.178,11.167,30.0]
[1672653199820,30.0,11.178,11.168,67.26]
[1672653200893,30.0,11.178,11.169,30.0]
[1672653201101,30.0,11.178,11.169,53.8337]
[1672653201839,30.0,11.178,11.169,23.8337]
[1672653202806,30.0,11.178,11.169,53.8337]
[1672653203095,119.9127,11.179,11.169,53.8337]
[1672653203414,30.0,11.178,11.17,67.25]
[1672653203610,30.0,11.178,11.17,91.0837]
[1672653206026,119.9127,11.179,11.17,91.0837]
[1672653206247,119.9127,11.179,11.171,30.0]
[1672653207094,119.9127,11.179,11.171,52.6284]
[1672653207306,119.9127,11.179,11.171,22.6284]
[1672653207525,119.9127,11.179,11.172,30.0]
[1672653208473,53.3832,11.18,11.171,52.6284]
[1672653209224,23.3832,11.18,11.171,52.6284]
[1672653209614,23.3832,11.18,11.173,30.0]
[1672653209826,54.4452,11.181,11.172,67.24]
[1672653210892,30.0,11.18,11.171,89.8784]
[1672653214132,24.4452,11.181,11.171,89.8784]
[1672653214354,24.4452,11.181,11.172,30.0]
[1672653215425,54.4452,11.181,11.172,30.0]
[1672653215822,24.4452,11.181,11.172,30.0]
[1672653216145,54.4452,11.181,11.171,119.8784]
[1672653216556,54.4452,11.181,11.171,89.8784]
[1672653216763,30.0,11.18,11.171,89.8784]
[1672653217087,30.0,11.18,11.172,30.0]
[1672653217499,54.4452,11.181,11.174,30.0]
[1672653217712,30.0,11.181,11.173,67.23]
[1672653217945,30.0,11.181,11.172,97.24]
[1672653219422,30.0,11.181,11.172,67.24]
[1672653219732,76.31,11.18,11.171,22.6284]
[1672653220138,155.894654,11.18,11.171,22.6284]
[1672653220363,30.0,11.179,11.171,22.6284]
[1672653220572,67.2,11.178,11.171,22.6284]
[1672653220780,146.784654,11.178,11.171,22.6284]
[1672653221195,30.0,11.177,11.171,22.6284]
[1672653223104,146.784654,11.178,11.171,22.6284]
[1672653223307,30.0,11.177,11.171,22.6284]
[1672653224762,111.99482381,11.179,11.171,22.6284]
[1672653224970,30.0,11.18,11.172,30.0]
[1672653226356,30.0,11.18,11.171,119.8784]
[1672653226573,109.584654,11.181,11.172,30.0]
[1672653228334,1000.0,11.18,11.171,89.8784]
[1672653228563,30.0,11.179,11.171,89.8784]
[1672653230555,1000.0,11.18,11.171,89.8784]
[1672653230981,1000.0,11.18,11.172,30.0]
[1672653231188,30.0,11.179,11.173,67.23]
[1672653231603,1000.0,11.18,11.172,67.24]
[1672653231821,30.0,11.179,11.172,67.24]
[1672653232451,1000.0,11.18,11.172,67.24]
[1672653232992,1000.0,11.18,11.173,30.0]
[1672653233718,1000.0,11.18,11.172,67.24]
[1672653234774,30.0,11.179,11.172,67.24]
[1672653235088,30.0,11.179,11.171,22.6284]
[1672653236751,1000.0,11.18,11.171,22.6284]
[1672653236961,1000.0,11.18,11.171,52.6284]
[1672653238029,30.0,11.179,11.171,52.6284]
[1672653238239,30.0,11.179,11.171,22.6284]
[1672653239918,97.2,11.179,11.171,22.6284]
[1672653240743,67.2,11.179,11.171,22.6284]
[1672653240961,67.2,11.179,11.172,30.0]
[1672653241484,1000.0,11.18,11.172,30.0]
[1672653242030,1000.0,11.18,11.171,52.6284]
[1672653242339,30.0,11.179,11.171,52.6284]
[1672653242750,1000.0,11.18,11.171,52.6284]
[1672653242962,30.0,11.179,11.171,52.6284]
[1672653243714,1000.0,11.18,11.171,52.6284]
[1672653244222,1000.0,11.18,11.172,30.0]
[1672653244871,1000.0,11.18,11.174,30.0]
[1672653246127,1000.0,11.18,11.173,67.23]
[1672653246953,1000.0,11.18,11.174,30.0]
[1672653247587,1000.0,11.18,11.173,67.23]
[1672653248015,30.0,11.179,11.172,23.7976]
[1672653248516,1000.0,11.18,11.172,53.7976]
[1672653248959,1000.0,11.18,11.173,30.0]
[1672653249801,1000.0,11.18,11.172,23.7976]
[1672653249802,30.0,11.179,11.172,23.7976]
[1672653250324,1000.0,11.18,11.172,23.7976]
[1672653250544,30.0,11.179,11.172,23.7976]
[1672653250845,1000.0,11.18,11.172,23.7976]
[1672653251261,1000.0,11.18,11.173,67.23]
[1672653251475,1000.0,11.18,11.174,30.0]
[1672653253777,1000.0,11.18,11.173,67.23]
[1672653254524,1000.0,11.18,11.172,91.0376]
[1672653255376,30.0,11.179,11.172,23.7976]
[1672653255572,1000.0,11.18,11.172,23.7976]
[1672653255898,1000.0,11.18,11.172,53.7976]
[1672653256094,1000.0,11.18,11.172,23.7976]
[1672653256517,1000.0,11.18,11.173,20.0]
[1672653256732,1000.0,11.18,11.174,83.75187]
[1672653256935,1000.0,11.18,11.176,30.0]
[1672653257151,1000.0,11.18,11.177,67.21]
[1672653257372,1000.0,11.18,11.176,67.22]
[1672653259459,1000.0,11.18,11.175,87.22]
[1672653260946,1000.0,11.18,11.176,30.0]
[1672653261173,1000.0,11.18,11.178,30.0]
[1672653262405,1000.0,11.18,11.175,42.929]
[1672653266708,30.0,11.179,11.174,23.5931]
[1672653267350,30.0,11.179,11.173,22.6541]
[1672653269443,1000.0,11.18,11.173,22.6541]
[1672653269774,30.0,11.179,11.173,22.6541]
[1672653270198,30.0,11.179,11.173,18.6541]
[1672653270925,97.2,11.179,11.173,18.6541]
[1672653271124,30.0,11.179,11.173,18.6541]
[1672653271334,97.2,11.179,11.173,18.6541]
[1672653272808,179.19482381,11.179,11.173,18.6541]
[1672653273436,248.38875114,11.179,11.173,18.6541]
[1672653275226,248.38875114,11.179,11.173,0.0041]
[1672653275647,248.38875114,11.179,11.17,23.578]
[1672653280393,218.38875114,11.179,11.17,23.578]
[1672653280603,218.38875114,11.179,11.171,24.2541]
[1672653280924,30.0,11.178,11.171,24.2541]
[1672653281107,67.21,11.177,11.171,24.2541]
[1672653281670,30.0,11.176,11.171,24.2541]
[1672653282054,67.22,11.175,11.171,24.2541]
[1672653282490,97.22,11.176,11.171,24.2541]
[1672653282695,67.22,11.176,11.171,24.2541]
[1672653283112,30.0,11.175,11.171,24.2541]
[1672653289515,30.0,11.176,11.171,24.2541]
[1672653294027,149.20482381,11.177,11.171,24.2541]
[1672653294452,30.0,11.177,11.171,24.2541]
[1672653297399,97.2,11.178,11.171,24.2541]
[1672653297611,67.2,11.178,11.171,24.2541]
[1672653297821,97.2,11.178,11.171,24.2541]
[1672653298461,30.0,11.177,11.171,24.2541]
[1672653301942,67.22,11.176,11.163,67.29]
[1672653302156,30.0,11.175,11.162,118.0953]
[1672653302471,87.23,11.174,11.163,67.29]
[1672653302686,30.0,11.173,11.161,67.31]
[1672653302871,20.0,11.172,11.162,30.0]
[1672653303195,20.0,11.172,11.164,30.0]
[1672653303621,20.0,11.172,11.163,67.29]
[1672653304447,20.0,11.172,11.164,30.0]
[1672653305079,50.0,11.172,11.164,30.0]
[1672653305412,20.0,11.172,11.164,30.0]
[1672653306149,20.0,11.172,11.166,30.0]
[1672653306884,20.0,11.172,11.164,30.0]
[1672653308020,50.0,11.172,11.163,67.29]
[1672653309392,20.0,11.172,11.163,67.29]
[1672653309604,20.0,11.172,11.164,30.0]
[1672653310562,20.0,11.172,11.165,67.28]
[1672653310867,20.0,11.172,11.166,30.0]
[1672653311301,20.0,11.172,11.165,67.28]
[1672653311495,20.0,11.172,11.164,67.29]
[1672653311496,50.0,11.172,11.164,67.29]
[1672653311732,20.0,11.172,11.164,67.29]
[1672653312245,30.0,11.171,11.163,97.29]
[1672653313378,50.0,11.172,11.163,97.29]
[1672653313591,20.0,11.172,11.163,97.29]
[1672653313797,50.0,11.172,11.163,97.29]
[1672653314456,20.0,11.172,11.163,97.29]
[1672653314850,50.0,11.172,11.163,97.29]
[1672653315592,20.0,11.172,11.163,97.29]
[1672653315804,50.0,11.172,11.163,97.29]
[1672653316441,50.0,11.172,11.163,67.29]
[1672653316645,50.0,11.172,11.162,24.5962]
[1672653316646,9.13,11.17,11.162,24.5962]
[1672653318761,91.12482381,11.17,11.162,24.5962]
[1672653318952,30.0,11.169,11.162,24.5962]
[1672653321897,91.12482381,11.17,11.162,24.5962]
[1672653322540,91.12482381,11.17,11.162,91.8962]
[1672653322976,30.0,11.169,11.162,24.5962]
[1672653323279,179.25482381,11.169,11.162,24.5962]
[1672653324316,248.44875114,11.169,11.162,24.5962]
[1672653325886,218.44875114,11.169,11.162,24.5962]
[1672653326118,76.38,11.17,11.162,24.5962]
[1672653326426,30.0,11.169,11.162,24.5962]
[1672653326641,76.38,11.17,11.162,24.5962]
[1672653326959,30.0,11.169,11.162,24.5962]
[1672653329484,67.26,11.168,11.162,24.5962]
[1672653329700,30.0,11.167,11.162,24.5962]
[1672653330223,67.26,11.168,11.162,24.5962]
[1672653330622,30.0,11.167,11.162,24.5962]
[1672653332305,30.0,11.165,11.156,67.34]
[1672653332639,20.0,11.164,11.152,30.0]
[1672653332857,30.0,11.163,11.154,30.0]
[1672653333042,20.0,11.162,11.154,30.0]
[1672653333789,180.7413,11.164,11.154,30.0]
[1672653334005,151.18875114,11.167,11.156,30.0]
[1672653334205,151.18875114,11.167,11.157,67.33]
[1672653334426,151.18875114,11.167,11.158,30.0]
[1672653334737,151.18875114,11.167,11.158,53.2926]
[1672653336502,67.26,11.169,11.158,53.2926]
[1672653336742,67.26,11.169,11.16,30.0]
[1672653337053,30.0,11.169,11.16,30.0]
[1672653338098,30.0,11.169,11.16,54.1966]
[1672653338831,30.0,11.169,11.16,24.1966]
[1672653339247,99.19392733,11.169,11.16,24.1966]
[1672653339465,30.0,11.167,11.16,24.1966]
[1672653341144,97.26,11.168,11.16,24.1966]
[1672653341339,67.26,11.168,11.16,24.1966]
[1672653341553,151.18875114,11.169,11.16,24.1966]
[1672653341881,67.25,11.17,11.16,24.1966]
[1672653342076,67.25,11.17,11.161,67.31]
[1672653342409,67.25,11.17,11.16,30.0]
[1672653342623,187.0789,11.171,11.16,30.0]
[1672653342932,119.8289,11.171,11.162,30.0]
[1672653343246,30.0,11.17,11.162,30.0]
[1672653343651,119.8289,11.171,11.162,30.0]
[1672653343877,30.0,11.17,11.161,90.6037]
[1672653344089,166.44392733,11.17,11.161,23.2937]
[1672653344405,248.43875114,11.17,11.161,23.2937]
[1672653346915,218.43875114,11.17,11.161,53.2937]
[1672653347124,151.18875114,11.17,11.161,53.2937]
[1672653347557,151.18875114,11.17,11.161,23.2937]
[1672653347777,30.0,11.169,11.161,47.9587]
[1672653348488,181.18875114,11.17,11.161,47.9587]
[1672653348916,30.0,11.169,11.161,47.9587]
[1672653349869,181.18875114,11.17,11.161,47.9587]
[1672653350186,151.18875114,11.17,11.161,47.9587]
[1672653350392,151.18875114,11.17,11.162,30.0]
[1672653350606,119.8289,11.171,11.162,97.3]
[1672653351321,119.8289,11.171,11.162,120.2041]
[1672653351535,119.8289,11.171,11.162,52.9041]
[1672653354073,30.0,11.17,11.162,22.9041]
[1672653354477,119.8289,11.171,11.162,22.9041]
[1672653354896,119.8289,11.171,11.163,30.0]
[1672653355836,30.0,11.17,11.162,30.0]
[1672653356271,30.0,11.17,11.161,97.31]
[1672653356697,149.8289,11.171,11.161,120.5096]
[1672653356907,30.0,11.17,11.161,120.5096]
[1672653357108,30.0,11.17,11.161,90.5096]
[1672653358277,30.0,11.17,11.162,30.0]
[1672653358991,30.0,11.17,11.162,23.0287]
[1672653359723,149.8289,11.171,11.162,53.0287]
[1672653359933,30.0,11.17,11.162,23.0287]
[1672653360370,97.25,11.17,11.162,23.0287]
[1672653361212,166.44392733,11.17,11.162,23.0287]
[1672653363841,136.44392733,11.17,11.162,23.0287]
[1672653364249,67.25,11.17,11.162,53.0287]
[1672653364460,30.0,11.17,11.162,23.0287]
[1672653365953,269.07372381,11.171,11.162,23.0287]
[1672653366146,30.0,11.17,11.162,23.0287]
[1672653366349,269.07372381,11.171,11.162,23.0287]
[1672653366771,269.07372381,11.171,11.163,30.0]
[1672653367311,30.0,11.17,11.162,53.0287]
[1672653368557,30.0,11.17,11.162,23.0287]
[1672653369095,269.07372381,11.171,11.162,23.0287]
[1672653369623,30.0,11.17,11.162,23.0287]
[1672653370988,24.6471,11.172,11.162,23.0287]
[1672653370989,67.23,11.173,11.163,50.0]
[1672653371187,67.2,11.179,11.164,67.29]
[1672653371402,67.2,11.179,11.166,30.0]
[1672653371403,30.0,11.178,11.166,30.0]
[1672653371743,67.21,11.177,11.168,30.0]
[1672653371933,30.0,11.178,11.168,30.0]
[1672653372880,30.0,11.178,11.169,23.634]
[1672653373090,30.0,11.176,11.169,23.634]
[1672653374361,67.21,11.177,11.169,23.634]
[1672653374681,30.0,11.176,11.169,23.634]
[1672653375311,67.21,11.177,11.169,23.634]
[1672653376475,81.99482381,11.178,11.169,90.894]
[1672653376661,81.99482381,11.178,11.17,30.0]
[1672653377294,30.0,11.177,11.169,90.894]
[1672653377719,67.2,11.179,11.169,23.634]
[1672653377933,30.0,11.179,11.17,106.38]
[1672653378354,30.0,11.179,11.17,76.38]
[1672653378684,30.0,11.179,11.169,67.26]
[1672653378865,179.19482381,11.179,11.169,23.8322]
[1672653379728,179.19482381,11.179,11.168,67.26]
[1672653379935,179.19482381,11.179,11.169,30.0]
[1672653380458,179.19482381,11.179,11.17,22.8966]
[1672653380875,248.38875114,11.179,11.17,22.8966]
[1672653384035,218.38875114,11.179,11.17,22.8966]
[1672653384231,1117.6222,11.18,11.171,97.25]
[1672653384443,1117.6222,11.18,11.172,30.0]
[1672653385382,1117.6222,11.18,11.171,30.0]
[1672653385809,1117.6222,11.18,11.171,54.1147]
[1672653386228,1117.6222,11.18,11.171,24.1147]
[1672653386455,30.0,11.179,11.171,24.1147]
[1672653387716,1000.0,11.175,11.171,24.1147]
[1672653389606,1000.0,11.175,11.172,30.0]
[1672653390556,1000.0,11.175,11.171,54.1147]
[1672653390769,1000.0,11.175,11.172,67.24]
[1672653390979,1000.0,11.175,11.171,91.3647]
[1672653391300,1000.0,11.175,11.172,30.0]
[1672653392338,1000.0,11.175,11.171,91.3647]
[1672653392771,1000.0,11.175,11.171,24.1147]
[1672653399717,1000.0,11.175,11.172,30.0]
[1672653400113,1000.0,11.175,11.171,121.3647]
[1672653400534,1000.0,11.175,11.171,91.3647]
[1672653402651,1000.0,11.175,11.172,30.0]
[1672653403299,1000.0,11.175,11.171,91.3647]
[1672653404536,1000.0,11.175,11.172,30.0]
[1672653404968,1000.0,11.175,11.171,121.3647]
[1672653405180,1000.0,11.175,11.172,30.0]
[1672653406238,1000.0,11.175,11.171,121.3647]
[1672653406637,1000.0,11.175,11.172,30.0]
[1672653406848,1000.0,11.175,11.171,121.3647]
[1672653407921,1000.0,11.175,11.172,30.0]
[1672653408328,1000.0,11.175,11.171,91.3647]
[1672653408860,1000.0,11.175,11.172,30.0]
[1672653409062,67.16,11.185,11.174,30.0]
[1672653409295,184.9393,11.188,11.175,87.22]
[1672653409592,184.9393,11.188,11.176,30.0]
[1672653409593,117.7993,11.187,11.176,30.0]
[1672653409996,117.7993,11.187,11.177,67.21]
[1672653410207,117.7993,11.187,11.178,30.0]
[1672653410417,117.7993,11.187,11.177,67.21]
[1672653411265,67.16,11.186,11.178,30.0]
[1672653411705,67.16,11.186,11.178,53.7971]
[1672653412424,67.16,11.186,11.178,23.7971]
[1672653412622,117.7993,11.187,11.178,23.7971]
[1672653413690,117.7993,11.187,11.179,30.0]
[1672653414095,117.7993,11.187,11.179,24.0474]
[1672653415154,30.0,11.186,11.179,24.0474]
[1672653415898,30.0,11.186,11.172,16.52482]
[1672653416093,30.0,11.184,11.167,30.0]
[1672653416309,186.6543,11.183,11.168,16.53074]
[1672653416513,186.6543,11.183,11.17,9.04]
[1672653416514,30.0,11.181,11.17,9.04]
[1672653416729,67.19,11.18,11.171,30.0]
[1672653418842,67.17,11.184,11.172,104.24]
[1672653419049,184.0106,11.187,11.173,46.52334]
[1672653419374,67.13,11.19,11.175,30.0]
[1672653419586,30.0,11.189,11.176,67.22]
[1672653419774,67.14,11.188,11.176,67.22]
[1672653420104,186.7341,11.188,11.177,30.0]
[1672653420528,186.7341,11.188,11.178,23.3661]
[1672653421053,186.7341,11.188,11.177,30.0]
[1672653421775,186.7341,11.188,11.178,23.3661]
[1672653422523,186.7341,11.188,11.177,30.0]
[1672653423050,186.7341,11.188,11.178,24.2885]
[1672653423787,186.7341,11.188,11.177,29.5]
[1672653424499,186.7341,11.188,11.178,24.2885]
[1672653424923,186.7341,11.188,11.179,30.0]
[1672653425257,119.5941,11.188,11.179,97.2]
[1672653425670,119.5941,11.188,11.179,30.0]
[1672653426082,119.5941,11.188,11.179,54.5085]
[1672653427339,119.5941,11.188,11.18,9.04]
[1672653433237,119.5941,11.188,11.179,54.5085]
[1672653433441,119.5941,11.188,11.179,24.5085]
[1672653434407,119.5941,11.188,11.18,30.0]
[1672653435660,119.5941,11.188,11.179,24.5085]
[1672653435877,119.5941,11.188,11.18,67.19]
[1672653436185,119.5941,11.188,11.179,91.7085]
[1672653436721,119.5941,11.188,11.18,39.13]
[1672653437447,119.5941,11.188,11.18,9.13]
[1672653438906,119.5941,11.188,11.179,91.7085]
[1672653439233,119.5941,11.188,11.179,24.5085]
[1672653440498,67.15,11.187,11.179,24.5085]
[1672653440712,97.15,11.187,11.179,24.5085]
[1672653441360,67.15,11.187,11.179,24.5085]
[1672653443770,119.5941,11.188,11.18,97.19]
[1672653444176,119.5941,11.188,11.18,67.19]
[1672653444597,119.5941,11.188,11.179,24.5085]
[1672653444809,119.5941,11.188,11.18,30.0]
[1672653447650,119.5941,11.188,11.179,54.5085]
[1672653448308,119.5941,11.188,11.179,24.5085]
[1672653450506,119.5941,11.188,11.18,30.0]
[1672653451638,119.5941,11.188,11.179,54.5085]
[1672653453126,119.5941,11.188,11.179,24.5085]
[1672653457955,30.0,11.187,11.179,24.5085]
[1672653458700,67.16,11.186,11.179,24.5085]
[1672653460272,67.15,11.187,11.179,24.5085]
[1672653460465,97.15,11.187,11.179,24.5085]
[1672653460901,67.15,11.187,11.179,24.5085]
[1672653461739,119.5941,11.188,11.18,30.0]
[1672653462160,119.5941,11.188,11.179,54.5085]
[1672653462691,30.0,11.187,11.179,24.5085]
[1672653469000,119.5941,11.188,11.179,24.5085]
[1672653469407,119.5941,11.188,11.18,30.0]